fUST/lending_fUST_20241104
["ID","MTS","AMOUNT","RATE_DAILY","PERIOD"]
[341219614,1730674248166,-757.08223,0.00038491,14]
[341219615,1730674248176,-757.08223,0.00038491,14]
[341219616,1730674248189,-757.08223,0.00038491,14]
[341219617,1730674248201,-151.0,0.00038491,14]
[341219618,1730674248210,-151.0,0.00038491,14]
[341219619,1730674248221,-153.521561,0.00038491,14]
[341219620,1730674248237,-151.0,0.00038491,14]
[341219621,1730674248247,-151.0,0.00038491,14]
[341219622,1730674248257,-151.0,0.00038491,14]
[341219623,1730674248267,-265.716568,0.00038491,14]
[341219624,1730674248277,-2121.47626317,0.00038491,3]
[341219625,1730674248288,-197.899636,0.00038491,14]
[341219626,1730674248298,-197.899636,0.00038491,14]
[341219627,1730674248311,-197.899636,0.00038491,14]
[341219628,1730674248321,-197.899636,0.00038491,14]
[341219629,1730674248331,-715.72,0.000385,2]
[341219630,1730674248340,-150.112233,0.000385,10]
[341219631,1730674248350,-150.112233,0.000385,18]
[341219632,1730674248360,-151.0,0.00038548,120]
[341219633,1730674248369,-1256.70587314,0.000386,2]
[341219634,1730674248380,-158.15,0.000386,31]
[341219635,1730674248390,-150.112233,0.000386,12]
[341219636,1730674248401,-613.0,0.000386,2]
[341219637,1730674248410,-7404.54665293,0.00038688,2]
[341219638,1730674248420,-300.02,0.00038688,2]
[341219639,1730674248430,-151.0,0.00038688,14]
[341219640,1730674248440,-151.0,0.00038688,14]
[341219641,1730674248450,-197.899636,0.00038688,14]
[341219642,1730674248462,-197.899636,0.00038688,14]
[341219643,1730674248472,-4077.37977041,0.000387,60]
[341219644,1730674248481,-200.2,0.000387,120]
[341219645,1730674248493,-151.0,0.000387,14]
[341219646,1730674248502,-151.0,0.000387,14]
[341219647,1730674248512,-190.357427,0.000387,14]
[341219648,1730674248522,-757.08223,0.000387,14]
[341219649,1730674248532,-757.08223,0.000387,14]
[341219650,1730674248543,-757.08223,0.000387,14]
[341219651,1730674248554,-757.08223,0.000387,14]
[341219652,1730674248564,-757.08223,0.000387,14]
[341219653,1730674248576,-757.08223,0.000387,14]
[341219654,1730674248587,-757.08223,0.000387,14]
[341219655,1730674248597,-151.0,0.000387,14]
[341219656,1730674248607,-757.08223,0.000387,14]
[341219657,1730674248619,-151.0,0.000387,14]
[341219658,1730674248630,-757.08223,0.000387,14]
[341219659,1730674248640,-151.0,0.000387,14]
[341219660,1730674248651,-757.08223,0.000387,14]
[341219661,1730674248662,-151.0,0.000387,14]
[341219662,1730674248673,-757.08223,0.000387,14]
[341219663,1730674248683,-757.08223,0.000387,14]
[341219664,1730674248693,-757.08223,0.000387,14]
[341219665,1730674248703,-757.08223,0.000387,14]
[341219666,1730674248712,-151.0,0.000387,14]
[341219667,1730674248722,-151.0,0.000387,14]
[341219668,1730674248732,-151.0,0.000387,14]
[341219669,1730674248746,-151.0,0.000387,14]
[341219670,1730674248758,-151.0,0.000387,14]
[341219671,1730674248768,-151.0,0.000387,14]
[341219672,1730674248779,-197.899636,0.000387,14]
[341219673,1730674248790,-197.899636,0.000387,14]
[341219674,1730674248800,-197.899636,0.000387,14]
[341219675,1730674248811,-197.89964,0.000387,14]
[341219676,1730674248823,-150.697956,0.000387,2]
[341219677,1730674248832,-500.0,0.000387,60]
[341219678,1730674248842,-500.0,0.000387,60]
[341219679,1730674248852,-13278.63,0.000387,30]
[341219680,1730674248863,-968.1,0.00038713,3]
[341219681,1730674248873,-2037.24,0.00038767,120]
[341219682,1730674248884,-270.27,0.00038799,2]
[341219683,1730674248894,-449.93554945,0.00038799,14]
[341219684,1730674248904,-1750.71557119,0.00038799,12]
[341219685,1730674249012,-1171.98193,0.00034621,14]
[341219686,1730674249022,-681.442535,0.00034621,14]
[341219687,1730674249032,-1171.98193,0.00034621,14]
[341219688,1730674249042,-150.0,0.00038084,2]
[341219689,1730674249053,-7756.1101139,0.00038799,12]
[341219690,1730674249063,-5988.44197974,0.000388,120]
[341219691,1730674249138,-681.442535,0.00034621,14]
[341219692,1730674249148,-11.407465,0.00034621,14]
[341219693,1730674249368,-1160.574465,0.00034621,14]
[341219694,1730674249378,-486.75699229,0.00034621,14]
[341219695,1730674249708,-194.68554271,0.00034621,14]
[341219696,1730674249718,-663.64993975,0.00034621,14]
[341219698,1730674778445,176.383226,0.00013973,2]
[341219699,1730674898021,3914.22400303,0.00020186,2]
[341219700,1730675138134,-151.0,0.0003,120]
[341219701,1730675138156,-151.0,0.0003,120]
[341219702,1730675138177,-203.3913855,0.00033051,2]
[341219703,1730675138197,-421.70730567,0.00033507,4]
[341219704,1730675138216,-214.73257132,0.00033507,4]
[341219705,1730675166996,250.94,0.0002,2]
[341219706,1730675167414,250.94,0.00017,2]
[341219707,1730675167855,250.94,0.00013,2]
[341219708,1730675168272,250.94,0.0001,2]
[341219709,1730675170326,150.0,0.00019,30]
[341219710,1730675171125,150.0,0.00017,30]
[341219711,1730675171428,150.0,0.00014,30]
[341219712,1730675171821,150.0,0.00012,30]
[341219713,1730675172188,150.0,0.0001,30]
[341219714,1730675172710,150.0,8e-05,30]
[341219715,1730675173122,150.0,6e-05,30]
[341219716,1730675176393,747.13,0.00023,60]
[341219717,1730675176791,747.13,0.00019,60]
[341219718,1730675236099,-150.0,0.00021,30]
[341219719,1730675236128,-124.72476563,0.00023,30]
[341219720,1730675245098,-25.27523437,0.00023,30]
[341219721,1730675245119,-250.94,0.00024,2]
[341219722,1730675245139,-150.0,0.00025,30]
[341219723,1730675245160,-93.9135125,0.00027,2]
[341219724,1730675349147,-157.0264875,0.00027,2]
[341219725,1730675349169,-747.13,0.00027,60]
[341219726,1730675349190,-250.94,0.00031,2]
[341219727,1730675349212,-747.13,0.00031,60]
[341219728,1730675352118,-285.26742868,0.00033507,4]
[341219729,1730675352139,-500.0,0.00033781,4]
[341219730,1730675352160,-250.94,0.00034,2]
[341219731,1730675352181,-174.231187,0.00034051,2]
[341219732,1730675352202,-176.383226,0.00034475,2]
[341219733,1730675352222,-400.0,0.00034599,2]
[341219734,1730675352243,-400.0,0.00034599,2]
[341219735,1730675352264,-1710.79361559,0.000346,15]
[341219758,1730675431900,-400.0,0.00034599,2]
[341219759,1730675431911,-400.0,0.00034599,2]
[341219760,1730675431920,-669.09283779,0.000346,15]
[341219761,1730675431932,-6877.49922125,0.000346,15]
[341219762,1730675431950,-742.61432537,0.000346,15]
[341219763,1730675431959,-151.0,0.00034603,120]
[341219764,1730675431969,-174.231187,0.00034736,2]
[341219765,1730675431978,-500.0,0.00034779,2]
[341219766,1730675431988,-221.52176153,0.00034779,4]
[341219767,1730675431997,-1262.98030569,0.00034953,2]
[341219768,1730675432008,-500.0,0.00034999,4]
[341219769,1730675432017,-500.0,0.00034999,3]
[341219770,1730675432027,-747.13,0.00035,60]
[341219771,1730675432036,-151.15,0.00035,2]
[341219772,1730675432046,-24441.38287454,0.00035,2]
[341219773,1730675432056,-500.0,0.00035053,2]
[341219774,1730675432065,-500.0,0.00035273,3]
[341219775,1730675432075,-500.0,0.00035327,2]
[341219776,1730675432085,-174.231187,0.00035421,2]
[341219777,1730675432094,-151.0,0.00035452,120]
[341219778,1730675432104,-1605.09,0.0003546,120]
[341219779,1730675432114,-500.0,0.00035547,3]
[341219780,1730675432124,-500.0,0.00035821,3]
[341219781,1730675432133,-1262.98030566,0.00035945,2]
[341219782,1730675432147,-500.0,0.00036095,3]
[341219783,1730675432156,-500.0,0.00036369,3]
[341219784,1730675432166,-500.0,0.00036499,4]
[341219785,1730675432175,-500.0,0.00036643,3]
[341219786,1730675432185,-500.0,0.00036773,4]
[341219787,1730675432194,-506.0,0.00036856,3]
[341219788,1730675432203,-500.0,0.00036856,3]
[341219789,1730675432213,-500.0,0.00036917,3]
[341219790,1730675432223,-1262.98030566,0.00036938,2]
[341219791,1730675432232,-500.0,0.00037046,4]
[341219792,1730675432241,-549.191528,0.00037047,4]
[341219793,1730675432251,-214.0,0.00037113,2]
[341219794,1730675432260,-500.0,0.00037191,3]
[341219795,1730675432270,-418.87432241,0.0003732,4]
[341219796,1730675432279,-155.05135127,0.00037382,21]
[341219797,1730675432289,-500.0,0.00037465,3]
[341219798,1730675432298,-500.0,0.00037739,3]
[341219799,1730675432307,-250.94,0.00038,2]
[341219800,1730675432317,-500.0,0.00038013,3]
[341219801,1730675432326,-500.99067417,0.00038242,2]
[341219802,1730675432339,-500.0,0.00038242,5]
[341219803,1730675432348,-500.0,0.00038287,3]
[341219804,1730675432357,-500.0,0.00038356,2]
[341219805,1730675432367,-2000.0,0.00038356,120]
[341219806,1730675432376,-2000.0,0.00038356,120]
[341219807,1730675432391,-2000.0,0.00038356,120]
[341219808,1730675432400,-2000.0,0.00038356,120]
[341219809,1730675432410,-2000.0,0.00038356,120]
[341219810,1730675432419,-1762.32226332,0.00038491,2]
[341219811,1730675432428,-9021.50358781,0.00038491,2]
[341219829,1730675437977,-673.25043765,0.0003793,2]
[341219832,1730675437989,-589.72986801,0.0003793,2]
[341219833,1730675437998,-691.28730687,0.00038491,2]
[341219834,1730675438007,-688.53,0.000385,2]
[341219835,1730675438017,-250.445,0.00038504,2]
[341219836,1730675438026,-2393.0,0.00038504,2]
[341219837,1730675438036,-5000.0,0.0003856,30]
[341219838,1730675438045,-500.0,0.00038561,3]
[341219839,1730675438054,-361.50851029,0.00038763,2]
[341219840,1730675438064,-807.01,0.0003879,3]
[341219841,1730675438074,-388.33,0.0003879,10]
[341219842,1730675438083,-381.30562372,0.00038798,2]
[341219843,1730675438092,-1561.19,0.00038799,120]
[341219844,1730675438101,-35387.66369221,0.000388,120]
[341219853,1730675440234,-164.52210754,0.000387,2]
[341219856,1730675443910,-611.94791378,0.000387,2]
[341219861,1730675445905,-150.52997868,0.000387,2]
[341219862,1730675445914,-536.43002132,0.000388,120]
[341219863,1730675445926,-321.74805811,0.000388,120]
[341219864,1730675446923,154.0,0.0003,2]
[341219866,1730675515013,179.754467,0.00013973,2]
[341219867,1730675536764,654.89774137,0.0003101,30]
[341219868,1730675543573,244.584485,0.00034258,2]
[341219869,1730675543708,500.0,0.0003101,30]
[341219870,1730676063910,165.5668861,0.00013973,2]
[341219873,1730676349126,-151.0,0.0003,120]
[341219874,1730676349148,-151.0,0.0003,120]
[341219875,1730676349171,-203.188491,0.00032507,2]
[341219876,1730676349193,-310.89998997,0.00033019,2]
[341219878,1730676425230,-320.59016286,0.00033019,2]
[341219879,1730676425254,-330.09328208,0.00033068,2]
[341219880,1730676430120,-12.90671792,0.00033068,2]
[341219881,1730676430146,-500.0,0.00033069,3]
[341219882,1730676430169,-392.54280083,0.00033069,120]
[341219883,1730676430199,-3137.93336993,0.00033069,120]
[341219884,1730676430220,-383.33829163,0.00033069,2]
[341219885,1730676436117,-597.56404455,0.00033069,2]
[341219886,1730676442101,-2089.25787542,0.00033069,2]
[341219889,1730676500799,185.86634559,0.000123,2]
[341219890,1730676502935,3557.26515894,0.000125,2]
[341219892,1730676547119,-1509.99999945,0.00023,2]
[341219893,1730676547257,-2149.77686377,0.00025,2]
[341219894,1730676547284,-1587.10137434,0.0002509,2]
[341219895,1730676547309,-552.55388377,0.00033019,2]
[341219896,1730676547335,-217.73872972,0.00033069,4]
[341219897,1730676547365,-15739.44769004,0.00033069,2]
[341219898,1730676552125,-163.056323,0.00030294,2]
[341219899,1730676552145,-163.056323,0.00030979,2]
[341219900,1730676552166,-163.056323,0.00031664,2]
[341219901,1730676552187,-4263.63891513,0.00033069,2]
[341219902,1730676564100,-507.76,0.00033069,3]
[341219903,1730676564123,-16555.02049276,0.00033069,2]
[341219905,1730676600527,161.3038695,0.00031267,2]
[341219906,1730676603433,199.839,0.00027097,2]
[341219907,1730676612280,151.0,0.0003,120]
[341219934,1730676632108,-4198.18926237,0.00033069,2]
[341219935,1730676632118,-2005.45567727,0.000333,2]
[341219936,1730676632138,-15290.15928359,0.000333,2]
[341219937,1730676632147,-507.76,0.00033343,3]
[341219938,1730676632156,-156.86,0.00033511,10]
[341219939,1730676632165,-784.3,0.00033511,10]
[341219940,1730676632175,-164.0,0.00033516,30]
[341219941,1730676632184,-159.7,0.0003352,2]
[341219942,1730676632193,-159.7,0.0003352,2]
[341219943,1730676632202,-159.7,0.0003352,2]
[341219944,1730676632211,-159.7,0.0003352,2]
[341219945,1730676632219,-159.7,0.0003352,2]
[341219946,1730676632228,-159.7,0.0003352,2]
[341219947,1730676632238,-159.7,0.0003352,2]
[341219948,1730676632247,-159.7,0.0003352,2]
[341219949,1730676632255,-159.7,0.0003352,2]
[341219950,1730676632266,-762.67405354,0.00033521,2]
[341219951,1730676632274,-50881.36780369,0.00033521,2]
[341220405,1730676645210,-1977.68356442,0.00033521,2]
[341220444,1730676696624,177.389869,0.00013973,2]
[341220446,1730676746528,163.0,0.0003,2]
[341220447,1730676914730,1093.49344924,0.00020186,2]
[341220448,1730676922519,774.56459412,0.00020186,2]
[341220450,1730677223722,186.551828,0.00013973,2]
[341220452,1730677261121,10000.0,0.00024,60]
[341220453,1730677301067,10000.0,0.00024,60]
[341220454,1730677540120,-171.0,0.0003,2]
[341220455,1730677540141,-151.0,0.0003,120]
[341220456,1730677540163,-151.0,0.0003,120]
[341220457,1730677540184,-203.188491,0.00030201,2]
[341220458,1730677540207,-1493.63001446,0.00030798,2]
[341220459,1730677634121,-569.03352404,0.00030798,2]
[341220460,1730677634144,-439.5790521,0.000308,2]
[341220461,1730677634166,-250.0,0.0003082,2]
[341220462,1730677634189,-1004.115018,0.00031046,2]
[341220463,1730677634211,-160.038693,0.00031068,2]
[341220464,1730677634233,-25.39817602,0.00031082,2]
[341220465,1730677640122,-134.64051698,0.00031082,2]
[341220466,1730677640144,-90.978498,0.00031096,2]
[341220467,1730677642097,-69.060195,0.00031096,2]
[341220468,1730677642123,-160.038693,0.0003111,2]
[341220469,1730677642146,-160.038693,0.00031124,2]
[341220470,1730677642170,-160.038693,0.00031138,2]
[341220471,1730677642193,-160.038693,0.00031152,2]
[341220472,1730677642215,-160.038693,0.00031166,2]
[341220473,1730677642237,-160.038693,0.0003118,2]
[341220474,1730677642260,-98.46133317,0.00031195,2]
[341220475,1730677645144,-61.57735983,0.00031195,2]
[341220476,1730677645167,-160.038693,0.00031209,2]
[341220477,1730677645191,-160.038693,0.00031223,2]
[341220478,1730677645212,-1004.115018,0.00031731,2]
[341220479,1730677645233,-500.0,0.0003225,2]
[341220480,1730677645256,-500.0,0.0003225,5]
[341220481,1730677645277,-1004.115018,0.00032416,2]
[341220482,1730677645298,-160.9898029,0.00032877,120]
[341220483,1730677645321,-177.84930023,0.00033069,4]
[341220484,1730677648107,-22.15069977,0.00033069,4]
[341220485,1730677648128,-300.00594026,0.00033069,2]
[341220486,1730677648150,-200.16715657,0.00033069,4]
[341220487,1730677650101,-299.83284343,0.00033069,4]
[341220488,1730677650122,-500.0,0.00033069,4]
[341220489,1730677650145,-605.8788303,0.00033218,14]
[341220490,1730677650167,-605.7577272,0.00033218,14]
[341220491,1730677650189,-410.59220071,0.00033299,4]
[341220492,1730677650212,-296.77946708,0.00033343,4]
[341220493,1730677650234,-500.0,0.00033343,4]
[341220494,1730677650256,-174.59795868,0.00033343,4]
[341220495,1730677736921,177.389869,0.00013973,2]
[341220496,1730677766118,-791.0136767,0.00031756,2]
[341220497,1730677766265,-325.40204132,0.00033343,4]
[341220498,1730677766289,-502.58774254,0.0003335,2]
[341220499,1730677766311,-212.26878772,0.00033419,2]
[341220500,1730677766347,-156.93,0.000335,2]
[341220501,1730677766372,-236.49,0.00033509,3]
[341220502,1730677766396,-709.5,0.00033509,3]
[341220503,1730677766418,-1000.0478484,0.00033518,2]
[341220504,1730677766443,-220.88191787,0.00033519,3]
[341220513,1730677832373,-694.52788198,0.00033419,2]
[341220514,1730677832382,-472.98,0.00033509,3]
[341220515,1730677832391,-13298.13711732,0.00033519,2]
[341220528,1730677838637,-272.01827368,0.00033519,2]
[341220563,1730677846545,-25.06877944,0.00033519,2]
[341220564,1730677846682,-377.04878082,0.00033519,2]
[341220565,1730677921825,1793.915698,0.0003054,2]
[341220566,1730677937237,591.11357999,0.0003101,30]
[341220567,1730677944625,500.0,0.0003101,30]
[341220568,1730678274442,175.993294,0.00013973,2]
[341220580,1730678748129,-203.391385,0.00029938,2]
[341220581,1730678748151,-151.0,0.0003,120]
[341220582,1730678748172,-151.0,0.0003,120]
[341220583,1730678748192,-155.0,0.0003,2]
[341220584,1730678748212,-245.4932361,0.00030277,2]
[341220585,1730678748233,-164.0421822,0.00030606,2]
[341220586,1730678748254,-174.70318349,0.00033419,2]
[341220587,1730678757098,-158.56145625,0.00033419,2]
[341220588,1730678768465,390.89,0.0002,2]
[341220589,1730678768874,390.89,0.00017,2]
[341220590,1730678769421,390.89,0.00013,2]
[341220591,1730678770358,390.89,0.0001,2]
[341220592,1730678773198,150.0,0.00018,30]
[341220593,1730678773627,150.0,0.00015,30]
[341220594,1730678774073,150.0,0.00013,30]
[341220595,1730678774556,150.0,0.0001,30]
[341220596,1730678774977,150.0,7e-05,30]
[341220597,1730678778233,1239.11,0.00023,60]
[341220598,1730678778660,1239.11,0.00019,60]
[341220599,1730678779108,1239.11,0.00015,60]
[341220601,1730678827104,-150.0,0.00021,30]
[341220602,1730678827126,-150.0,0.00023,30]
[341220603,1730678827147,-390.89,0.00024,2]
[341220604,1730678827167,-150.0,0.00026,30]
[341220605,1730678827188,-390.89,0.00027,2]
[341220606,1730678827208,-1239.11,0.00027,60]
[341220607,1730678827233,-150.0,0.00029,30]
[341220608,1730678827255,-390.89,0.00031,2]
[341220609,1730678827276,-150.0,0.00031,30]
[341220610,1730678827297,-1239.11,0.00031,60]
[341220611,1730678827318,-322.96293908,0.00033419,2]
[341220612,1730678827341,-400.0,0.00033517,2]
[341220613,1730678827362,-500.0,0.00033518,4]
[341220614,1730678827387,-500.0,0.00033518,2]
[341220615,1730678827410,-500.0,0.00033518,4]
[341220616,1730678827437,-500.0,0.00033518,4]
[341220617,1730678827460,-796.21925482,0.00033518,3]
[341220618,1730678830141,-247.50074518,0.00033518,3]
[341220619,1730678830164,-500.0,0.00033518,4]
[341220620,1730678830186,-500.0,0.00033519,4]
[341220621,1730678830207,-500.0,0.00033519,7]
[341220622,1730678830228,-192.82079727,0.00033519,7]
[341220623,1730678830248,-1331.38440524,0.0003352,4]
[341220624,1730678830271,-232.029716,0.0003352,14]
[341220625,1730678830291,-151.0,0.0003352,14]
[341220626,1730678830312,-232.029716,0.0003352,14]
[341220627,1730678830333,-274.222735,0.0003352,14]
[341220628,1730678830355,-151.0,0.0003352,14]
[341220629,1730678830377,-151.0,0.0003352,14]
[341220630,1730678830400,-151.0,0.0003352,14]
[341220631,1730678830420,-151.0,0.0003352,14]
[341220632,1730678830440,-791.615425,0.0003352,14]
[341220633,1730678830460,-791.615425,0.0003352,14]
[341220634,1730678830482,-151.0,0.0003352,14]
[341220635,1730678830504,-151.0,0.0003352,14]
[341220636,1730678830526,-284.795494,0.0003352,14]
[341220637,1730678830547,-177.25357192,0.0003352,14]
[341220638,1730678831175,-107.54192208,0.0003352,14]
[341220639,1730678831201,-151.0,0.0003352,14]
[341220640,1730678831225,-151.0,0.0003352,14]
[341220641,1730678831251,-151.0,0.0003352,14]
[341220642,1730678831275,-202.854289,0.0003352,14]
[341220643,1730678831300,-87.49502972,0.0003352,14]
[341220644,1730678849163,-115.35925928,0.0003352,14]
[341220645,1730678849188,-151.0,0.0003352,14]
[341220646,1730678849211,-151.0,0.0003352,14]
[341220647,1730678849232,-151.0,0.0003352,14]
[341220648,1730678849252,-151.0,0.0003352,14]
[341220649,1730678849275,-149.80706203,0.0003352,14]
[341220651,1730678868750,177.389869,0.00013973,2]
[341220657,1730678950089,-574.19913145,0.00033419,2]
[341220658,1730678950111,-421.70730567,0.00033518,4]
[341220659,1730678950132,-303.0,0.00033518,2]
[341220660,1730678950154,-151.0,0.0003352,14]
[341220661,1730678950176,-151.0,0.0003352,14]
[341220662,1730678950197,-151.0,0.0003352,14]
[341220663,1730678950219,-151.0,0.0003352,14]
[341220664,1730678950241,-934.602486,0.0003352,14]
[341220665,1730678950262,-766.80348885,0.0003352,14]
[341220671,1730679032504,-94.5434712,0.00033518,3]
[341220692,1730679038755,-905.6865288,0.00033518,3]
[341220693,1730679038765,-500.0,0.00033518,4]
[341220694,1730679038774,-1207.55818611,0.00033519,2]
[341220763,1730679043725,-17.61793958,0.00033519,2]
[341220793,1730679046516,-39.524302,0.00033,2]
[341220794,1730679115524,244.5844855,0.00031113,2]
[341220795,1730679389116,177.873881,0.00013973,2]
[341220803,1730679871697,177.389869,0.00013973,2]
[341220809,1730679944114,-160.0,0.00027508,3]
[341220810,1730679944138,-160.0,0.00029884,4]
[341220811,1730679944160,-151.0,0.0003,120]
[341220812,1730679944184,-151.0,0.0003,120]
[341220813,1730679944207,-160.0,0.0003226,5]
[341220814,1730679944230,-76.94263155,0.0003226,5]
[341220815,1730679951106,-192.26695647,0.0003226,5]
[341220816,1730679951131,-176.694851,0.00032877,120]
[341220817,1730679951153,-391.98434757,0.00033,7]
[341220819,1730680031308,-1608.01565243,0.00033,7]
[341220820,1730680031328,-288.4301525,0.00033518,4]
[341220821,1730680031349,-500.0,0.00033518,4]
[341220822,1730680031370,-500.0,0.00033518,2]
[341220823,1730680031390,-500.0,0.00033518,4]
[341220824,1730680031412,-3137.93336993,0.00033518,120]
[341220825,1730680031435,-810.9691421,0.00033518,3]
[341220826,1730680039102,-147.5808579,0.00033518,3]
[341220827,1730680039125,-5.53743077,0.00033518,4]
[341220830,1730680101565,6595.51947067,0.000125,2]
[341220831,1730680151126,-452.999999,0.00023,2]
[341220832,1730680151147,-203.188491,0.00029865,2]
[341220922,1730680243569,-17.01314319,0.00033518,7]
[341220942,1730680385464,171.65432,0.00013973,2]
[341220944,1730680970524,177.389869,0.00013973,2]
[341220945,1730681131139,-162.0,0.00027,2]
[341220946,1730681131160,-162.0,0.00027671,2]
[341220947,1730681131180,-162.0,0.00028767,2]
[341220948,1730681131200,-200.0,0.000299,120]
[341220949,1730681131219,-151.0,0.0003,120]
[341220950,1730681131239,-151.0,0.0003,120]
[341220951,1730681131258,-163.0,0.00030205,2]
[341220952,1730681131278,-383.3382916,0.00030779,2]
[341220953,1730681131298,-1370.1953239,0.00030819,2]
[341220954,1730681136103,-123.4346905,0.00030819,2]
[341220955,1730681136125,-162.0,0.00032219,2]
[341220956,1730681136147,-171.0,0.00033,2]
[341220957,1730681136167,-1000.0,0.00033253,2]
[341220958,1730681136189,-582.29622757,0.00033253,2]
[341220959,1730681248124,-669.410012,0.00031938,2]
[341220960,1730681248147,-348.52277807,0.00032623,2]
[341220961,1730681252135,-320.88723393,0.00032623,2]
[341220962,1730681252155,-417.70377243,0.00033253,2]
[341220963,1730681252179,-1000.0,0.00033285,2]
[341220964,1730681252199,-638.49148971,0.00033294,2]
[341220965,1730681252219,-669.410012,0.00033308,2]
[341220966,1730681252239,-676.77728003,0.00033325,2]
[341220967,1730681252259,-1000.0,0.00033356,2]
[341220968,1730681252279,-400.0,0.00033417,2]
[341220969,1730681252299,-358.49900431,0.00033418,2]
[341220970,1730681252319,-1000.0,0.00033428,2]
[341220971,1730681252339,-500.0,0.00033517,4]
[341220972,1730681252362,-547.09453575,0.00033517,3]
[341220973,1730681357053,203.3913855,0.00031411,2]
[341220975,1730681384767,203.188491,0.00031146,2]
[341221084,1730681509979,190.827372,0.00031769,2]
[341221085,1730681510141,190.827372,0.00031928,2]
[341221086,1730681621727,171.492983,0.00013973,2]
[341221088,1730682342420,-151.0,0.0003,120]
[341221089,1730682342441,-151.0,0.0003,120]
[341221090,1730682342460,-303.38396351,0.0003,120]
[341221091,1730682342484,-158.917374,0.00031834,2]
[341221092,1730682342505,-158.917374,0.00031994,2]
[341221093,1730682342525,-167.574,0.0003243,4]
[341221094,1730682342545,-160.9898029,0.00032877,120]
[341221095,1730682342570,-72.25756551,0.00033,2]
[341221096,1730682349100,-153.0,0.00033123,2]
[341221097,1730682349123,-153.0,0.00033123,2]
[341221098,1730682349144,-153.0,0.00033123,2]
[341221099,1730682349166,-211.1299437,0.00033123,2]
[341221100,1730682349188,-211.1299437,0.00033123,2]
[341221101,1730682349209,-206.3909105,0.00033123,2]
[341221102,1730682349233,-884.46230975,0.00033417,2]
[341221103,1730682349255,-400.0,0.00033417,2]
[341221104,1730682349276,-515.65255466,0.00033418,2]
[341221105,1730682368245,156.16,0.0002,2]
[341221106,1730682368553,156.16,0.00017,2]
[341221107,1730682369098,156.16,0.00013,2]
[341221108,1730682369498,156.16,0.0001,2]
[341221109,1730682371945,150.0,0.00018,30]
[341221110,1730682372358,150.0,0.00015,30]
[341221111,1730682372825,150.0,0.00013,30]
[341221112,1730682373225,150.0,0.0001,30]
[341221113,1730682373657,150.0,7e-05,30]
[341221114,1730682376656,480.6,0.00023,60]
[341221115,1730682445117,-150.0,0.00021,30]
[341221116,1730682445141,-150.0,0.00023,30]
[341221117,1730682445163,-156.16,0.00024,2]
[341221118,1730682445185,-150.0,0.00026,30]
[341221119,1730682445206,-156.16,0.00027,2]
[341221120,1730682445227,-480.6,0.00027,60]
[341221121,1730682445248,-150.0,0.00029,30]
[341221122,1730682445269,-156.16,0.00031,2]
[341221123,1730682445292,-150.0,0.00031,30]
[341221124,1730682445313,-217.66103206,0.00031,60]
[341221125,1730682452113,-262.93896794,0.00031,60]